[Event "Titled Tuesday Blitz April 11 Late 2023"]
[White "Jaracz, Pawel"]
[Black "Gonzalez Zamora, Juan Carlos"]
[WhiteFideId "1102222"]
[BlackFideId "3507548"]
[WhiteElo "2438"]
[BlackElo "2535"]
[Result "1-0"]
[Round "02"]
[TimeControl "180+2"]
[Date "2023.04.11"]
[WhiteClock "0:01:14"]
[BlackClock "0:00:02"]

1. e4 {[%clk 0:03:00]}  d6 {[%clk 0:02:59]} 2. d4 {[%clk 0:02:56]}  Nf6 {[%clk 0:03:00]} 3. Nc3 {[%clk 0:02:56]}  e5 {[%clk 0:03:00]} 4. Nf3 {[%clk 0:02:50]}  Nbd7 {[%clk 0:02:58]} 5. g4 {[%clk 0:02:51]}  Nxg4 {[%clk 0:02:51]} 6. Rg1 {[%clk 0:02:51]}  Ngf6 {[%clk 0:02:44]} 7. Bc4 {[%clk 0:02:50]}  Nb6 {[%clk 0:02:35]} 8. Bb3 {[%clk 0:02:48]}  exd4 {[%clk 0:02:21]} 9. Qxd4 {[%clk 0:02:48]}  Be6 {[%clk 0:02:14]} 10. Bg5 {[%clk 0:02:31]}  c5 {[%clk 0:02:04]} 11. Qe3 {[%clk 0:02:24]}  c4 {[%clk 0:02:00]} 12. Ba4+ {[%clk 0:02:24]}  Nxa4 {[%clk 0:01:59]} 13. Nxa4 {[%clk 0:02:24]}  Be7 {[%clk 0:01:49]} 14. O-O-O {[%clk 0:02:23]}  Qa5 {[%clk 0:01:46]} 15. Nc3 {[%clk 0:02:21]}  O-O-O {[%clk 0:01:42]} 16. Nd4 {[%clk 0:02:19]}  Kb8 {[%clk 0:00:34]} 17. f4 {[%clk 0:02:11]}  h6 {[%clk 0:00:33]} 18. Bh4 {[%clk 0:02:06]}  g6 {[%clk 0:00:18]} 19. f5 {[%clk 0:01:48]}  Bc8 {[%clk 0:00:16]} 20. fxg6 {[%clk 0:01:48]}  fxg6 {[%clk 0:00:17]} 21. Rxg6 {[%clk 0:01:48]}  Rhf8 {[%clk 0:00:08]} 22. Qxh6 {[%clk 0:01:31]}  Rh8 {[%clk 0:00:04]} 23. Qf4 {[%clk 0:01:30]}  Nh5 {[%clk 0:00:03]} 24. Qf2 {[%clk 0:01:28]}  Bxh4 {[%clk 0:00:04]} 25. Qxh4 {[%clk 0:01:28]}  Rdf8 {[%clk 0:00:03]} 26. Rxd6 {[%clk 0:01:23]}  Nf4 {[%clk 0:00:03]} 27. Qg3 {[%clk 0:01:21]}  Qe5 {[%clk 0:00:02]} 28. Rd5 {[%clk 0:01:14]}  Rh3 {[%clk 0:00:02]} 29. Rxe5 {[%clk 0:01:14]} 1-0


[Site "https://www.chess.com"]

[Event "Titled Tuesday Blitz April 11 Late 2023"]
[White "Djordjevic, Vuk"]
[Black "Fernandez, Maria Florencia"]
[WhiteFideId "902098"]
[BlackFideId "116459"]
[WhiteElo "2452"]
[BlackElo "2120"]
[Result "1-0"]
[Round "02"]
[TimeControl "180+2"]
[Date "2023.04.11"]
[WhiteClock "0:01:17"]
[BlackClock "0:00:05"]

1. d4 {[%clk 0:03:00]}  Nf6 {[%clk 0:02:58]} 2. Bg5 {[%clk 0:03:01]}  c5 {[%clk 0:02:54]} 3. Bxf6 {[%clk 0:03:01]}  gxf6 {[%clk 0:02:53]} 4. d5 {[%clk 0:03:00]}  Qb6 {[%clk 0:02:52]} 5. Qc1 {[%clk 0:03:00]}  f5 {[%clk 0:02:51]} 6. c4 {[%clk 0:03:00]}  Bg7 {[%clk 0:02:50]} 7. Nc3 {[%clk 0:03:00]}  d6 {[%clk 0:02:50]} 8. e3 {[%clk 0:03:00]}  O-O {[%clk 0:02:50]} 9. Qc2 {[%clk 0:02:58]}  e5 {[%clk 0:02:45]} 10. Nge2 {[%clk 0:02:44]}  Nd7 {[%clk 0:02:26]} 11. Qxf5 {[%clk 0:01:38]}  Qxb2 {[%clk 0:02:23]} 12. Rb1 {[%clk 0:01:38]}  Qa3 {[%clk 0:02:19]} 13. Rb3 {[%clk 0:01:39]}  Qa5 {[%clk 0:02:16]} 14. Ng3 {[%clk 0:01:38]}  Nf6 {[%clk 0:01:28]} 15. Qc2 {[%clk 0:01:37]}  e4 {[%clk 0:00:54]} 16. Be2 {[%clk 0:01:33]}  Re8 {[%clk 0:00:33]} 17. O-O {[%clk 0:01:32]}  Qc7 {[%clk 0:00:29]} 18. Ncxe4 {[%clk 0:01:32]}  Nxe4 {[%clk 0:00:29]} 19. Nxe4 {[%clk 0:01:32]}  Qe7 {[%clk 0:00:20]} 20. Bd3 {[%clk 0:01:26]}  f5 {[%clk 0:00:19]} 21. Ng3 {[%clk 0:01:26]}  f4 {[%clk 0:00:12]} 22. Bxh7+ {[%clk 0:01:23]}  Kh8 {[%clk 0:00:12]} 23. exf4 {[%clk 0:01:21]}  Qh4 {[%clk 0:00:10]} 24. Bg6 {[%clk 0:01:17]}  Rf8 {[%clk 0:00:08]} 25. Nf5 {[%clk 0:01:17]}  Qxf4 {[%clk 0:00:05]} 26. Rh3+ {[%clk 0:01:16]}  Kg8 {[%clk 0:00:05]} 27. Ne7# {[%clk 0:01:17]} 1-0


[Site "https://www.chess.com"]

[Event "Titled Tuesday Blitz April 11 Late 2023"]
[White "Gerbelli Neto, Eduardo"]
[Black "Zeynalli, Rashad"]
[WhiteFideId "2103281"]
[BlackFideId "13403320"]
[WhiteElo "2178"]
[BlackElo "2125"]
[Result "1-0"]
[Round "02"]
[TimeControl "180+2"]
[Date "2023.04.11"]
[WhiteClock "0:00:31"]
[BlackClock "0:01:13"]

1. e4 {[%clk 0:03:00]}  c5 {[%clk 0:02:48]} 2. Nc3 {[%clk 0:02:59]}  Nc6 {[%clk 0:02:47]} 3. f4 {[%clk 0:03:00]}  g6 {[%clk 0:02:47]} 4. Nf3 {[%clk 0:03:01]}  Bg7 {[%clk 0:02:47]} 5. Bc4 {[%clk 0:03:01]}  d6 {[%clk 0:02:46]} 6. O-O {[%clk 0:03:01]}  Nf6 {[%clk 0:02:46]} 7. d3 {[%clk 0:03:01]}  O-O {[%clk 0:02:46]} 8. Qe1 {[%clk 0:02:58]}  e6 {[%clk 0:02:44]} 9. Bb3 {[%clk 0:02:56]}  d5 {[%clk 0:02:41]} 10. e5 {[%clk 0:02:53]}  Nd7 {[%clk 0:02:39]} 11. Bd2 {[%clk 0:02:50]}  f6 {[%clk 0:02:37]} 12. exf6 {[%clk 0:02:49]}  Nxf6 {[%clk 0:02:38]} 13. Ne2 {[%clk 0:02:36]}  b5 {[%clk 0:02:33]} 14. c3 {[%clk 0:02:36]}  a5 {[%clk 0:02:26]} 15. a4 {[%clk 0:02:35]}  Ba6 {[%clk 0:02:24]} 16. Bc2 {[%clk 0:02:24]}  b4 {[%clk 0:02:20]} 17. Ng3 {[%clk 0:02:15]}  Rb8 {[%clk 0:02:16]} 18. Qxe6+ {[%clk 0:02:14]}  Kh8 {[%clk 0:02:14]} 19. Qxc6 {[%clk 0:02:14]}  Bb7 {[%clk 0:02:10]} 20. Qxc5 {[%clk 0:02:14]}  bxc3 {[%clk 0:02:08]} 21. Bxc3 {[%clk 0:02:13]}  Rc8 {[%clk 0:02:08]} 22. Qd4 {[%clk 0:01:57]}  Nh5 {[%clk 0:02:06]} 23. Ne5 {[%clk 0:01:58]}  Nxg3 {[%clk 0:02:01]} 24. hxg3 {[%clk 0:01:57]}  Qd6 {[%clk 0:02:00]} 25. Rf3 {[%clk 0:01:15]}  Ba8 {[%clk 0:01:59]} 26. g4 {[%clk 0:01:14]}  Bb7 {[%clk 0:01:59]} 27. Raf1 {[%clk 0:01:08]}  Rce8 {[%clk 0:01:58]} 28. Rh3 {[%clk 0:01:07]}  Kg8 {[%clk 0:01:53]} 29. Bb3 {[%clk 0:01:05]}  Rd8 {[%clk 0:01:49]} 30. Qa7 {[%clk 0:00:54]}  Ba8 {[%clk 0:01:36]} 31. Qxa5 {[%clk 0:00:41]}  g5 {[%clk 0:01:28]} 32. Bb4 {[%clk 0:00:40]}  Qe6 {[%clk 0:01:12]} 33. Bxf8 {[%clk 0:00:39]}  gxf4 {[%clk 0:01:13]} 34. Bxg7 {[%clk 0:00:35]}  Kxg7 {[%clk 0:01:13]} 35. Qxd8 {[%clk 0:00:31]} 1-0


[Site "https://www.chess.com"]

[Event "Titled Tuesday Blitz April 11 Late 2023"]
[White "Mujumdar, Sameer"]
[Black "Bronstein, Or"]
[WhiteFideId "2029707"]
[BlackFideId "2815770"]
[WhiteElo "2104"]
[BlackElo "2356"]
[Result "0-1"]
[Round "02"]
[TimeControl "180+2"]
[Date "2023.04.11"]
[WhiteClock "0:02:13"]
[BlackClock "0:01:13"]

1. d4 {[%clk 0:03:00]}  g6 {[%clk 0:02:58]} 2. c4 {[%clk 0:02:59]}  Bg7 {[%clk 0:02:59]} 3. Nc3 {[%clk 0:02:59]}  d6 {[%clk 0:02:59]} 4. Nf3 {[%clk 0:02:59]}  e5 {[%clk 0:02:49]} 5. e3 {[%clk 0:02:57]}  Nc6 {[%clk 0:02:45]} 6. Be2 {[%clk 0:02:57]}  Nh6 {[%clk 0:02:43]} 7. O-O {[%clk 0:02:56]}  O-O {[%clk 0:02:43]} 8. b3 {[%clk 0:02:48]}  Nf5 {[%clk 0:02:41]} 9. dxe5 {[%clk 0:02:46]}  dxe5 {[%clk 0:02:14]} 10. Ba3 {[%clk 0:02:44]}  Re8 {[%clk 0:02:13]} 11. Qc2 {[%clk 0:02:32]}  a5 {[%clk 0:01:24]} 12. Rad1 {[%clk 0:02:31]}  Bd7 {[%clk 0:01:24]} 13. Nd5 {[%clk 0:02:21]}  e4 {[%clk 0:01:21]} 14. Bb2 {[%clk 0:02:13]}  exf3 {[%clk 0:01:13]} 0-1


[Site "https://www.chess.com"]

[Event "Titled Tuesday Blitz April 11 Late 2023"]
[White "Perez Rodriguez, Jennifer"]
[Black "Djokic, Mihailo"]
[WhiteFideId "3507831"]
[BlackFideId "976440"]
[WhiteElo "2116"]
[BlackElo "2294"]
[Result "0-1"]
[Round "02"]
[TimeControl "180+2"]
[Date "2023.04.11"]
[WhiteClock "0:00:15"]
[BlackClock "0:00:22"]

1. c4 {[%clk 0:02:57]}  e5 {[%clk 0:02:59]} 2. Nc3 {[%clk 0:02:54]}  Nc6 {[%clk 0:02:59]} 3. Nf3 {[%clk 0:02:53]}  Nf6 {[%clk 0:02:59]} 4. e3 {[%clk 0:02:50]}  Bb4 {[%clk 0:02:58]} 5. Nd5 {[%clk 0:02:47]}  Bc5 {[%clk 0:02:57]} 6. a3 {[%clk 0:02:45]}  a5 {[%clk 0:02:56]} 7. d4 {[%clk 0:02:38]}  exd4 {[%clk 0:02:56]} 8. exd4 {[%clk 0:02:38]}  Be7 {[%clk 0:02:52]} 9. Nxe7 {[%clk 0:02:37]}  Qxe7+ {[%clk 0:02:52]} 10. Be2 {[%clk 0:02:38]}  d5 {[%clk 0:02:47]} 11. O-O {[%clk 0:02:38]}  O-O {[%clk 0:02:46]} 12. Re1 {[%clk 0:02:37]}  Qd6 {[%clk 0:02:44]} 13. c5 {[%clk 0:02:31]}  Qd7 {[%clk 0:02:44]} 14. Ne5 {[%clk 0:02:25]}  Nxe5 {[%clk 0:02:44]} 15. dxe5 {[%clk 0:02:25]}  Ne4 {[%clk 0:02:45]} 16. Bf3 {[%clk 0:02:15]}  Nxc5 {[%clk 0:02:44]} 17. Qxd5 {[%clk 0:02:04]}  Qxd5 {[%clk 0:02:43]} 18. Bxd5 {[%clk 0:02:01]}  Rd8 {[%clk 0:02:28]} 19. Bc4 {[%clk 0:01:54]}  Be6 {[%clk 0:02:26]} 20. Be3 {[%clk 0:01:46]}  Nd7 {[%clk 0:02:11]} 21. Bxe6 {[%clk 0:01:43]}  fxe6 {[%clk 0:02:11]} 22. f4 {[%clk 0:01:42]}  Nb8 {[%clk 0:02:02]} 23. Rac1 {[%clk 0:01:26]}  Nc6 {[%clk 0:02:01]} 24. Kf2 {[%clk 0:01:26]}  Rd3 {[%clk 0:02:00]} 25. Red1 {[%clk 0:01:23]}  Rad8 {[%clk 0:01:59]} 26. Rxd3 {[%clk 0:01:24]}  Rxd3 {[%clk 0:02:00]} 27. Ke2 {[%clk 0:01:25]}  Rd5 {[%clk 0:02:00]} 28. Rd1 {[%clk 0:01:18]}  Ne7 {[%clk 0:01:56]} 29. Rxd5 {[%clk 0:01:06]}  Nxd5 {[%clk 0:01:57]} 30. Kd3 {[%clk 0:00:58]}  a4 {[%clk 0:01:55]} 31. g4 {[%clk 0:00:53]}  b5 {[%clk 0:01:54]} 32. Ke4 {[%clk 0:00:51]}  Nxe3 {[%clk 0:01:51]} 33. Kxe3 {[%clk 0:00:51]}  c5 {[%clk 0:01:52]} 34. f5 {[%clk 0:00:49]}  Kf7 {[%clk 0:01:51]} 35. Ke4 {[%clk 0:00:44]}  Ke7 {[%clk 0:01:36]} 36. h4 {[%clk 0:00:40]}  h5 {[%clk 0:01:23]} 37. gxh5 {[%clk 0:00:30]}  exf5+ {[%clk 0:01:21]} 38. Kxf5 {[%clk 0:00:30]}  b4 {[%clk 0:01:20]} 39. Kg6 {[%clk 0:00:29]}  bxa3 {[%clk 0:01:17]} 40. bxa3 {[%clk 0:00:28]}  Kf8 {[%clk 0:01:02]} 41. e6 {[%clk 0:00:28]}  c4 {[%clk 0:01:03]} 42. e7+ {[%clk 0:00:29]}  Kxe7 {[%clk 0:01:02]} 43. Kxg7 {[%clk 0:00:30]}  c3 {[%clk 0:01:02]} 44. h6 {[%clk 0:00:31]}  c2 {[%clk 0:01:03]} 45. h7 {[%clk 0:00:32]}  c1=Q {[%clk 0:01:03]} 46. h8=Q {[%clk 0:00:32]}  Qg1+ {[%clk 0:00:25]} 47. Kh7 {[%clk 0:00:31]}  Kf7 {[%clk 0:00:25]} 48. h5 {[%clk 0:00:15]}  Qg5 {[%clk 0:00:22]} 0-1


[Site "https://www.chess.com"]

[Event "Titled Tuesday Blitz April 11 Late 2023"]
[White "Sliwicki, Damian"]
[Black "Chylewski, Patryk"]
[WhiteFideId "1127128"]
[BlackFideId "1186191"]
[WhiteElo "2030"]
[BlackElo "2163"]
[Result "0-1"]
[Round "02"]
[TimeControl "180+2"]
[Date "2023.04.11"]
[WhiteClock "0:00:04"]
[BlackClock "0:00:03"]

1. e4 {[%clk 0:03:00]}  c6 {[%clk 0:02:58]} 2. Nc3 {[%clk 0:03:00]}  d5 {[%clk 0:02:58]} 3. Nf3 {[%clk 0:03:00]}  Nf6 {[%clk 0:02:57]} 4. e5 {[%clk 0:02:57]}  Ne4 {[%clk 0:02:57]} 5. Ne2 {[%clk 0:02:57]}  Qb6 {[%clk 0:02:56]} 6. d4 {[%clk 0:02:55]}  e6 {[%clk 0:02:56]} 7. c3 {[%clk 0:02:51]}  c5 {[%clk 0:02:56]} 8. Ng3 {[%clk 0:02:48]}  Nxg3 {[%clk 0:02:56]} 9. hxg3 {[%clk 0:02:48]}  Nc6 {[%clk 0:02:54]} 10. Bd3 {[%clk 0:02:43]}  cxd4 {[%clk 0:02:50]} 11. cxd4 {[%clk 0:02:44]}  Bb4+ {[%clk 0:02:50]} 12. Kf1 {[%clk 0:02:34]}  h6 {[%clk 0:02:38]} 13. a3 {[%clk 0:02:32]}  Be7 {[%clk 0:02:37]} 14. Be3 {[%clk 0:02:29]}  Bd7 {[%clk 0:02:37]} 15. b4 {[%clk 0:02:28]}  O-O-O {[%clk 0:02:34]} 16. Nd2 {[%clk 0:02:15]}  Kb8 {[%clk 0:02:26]} 17. Nb3 {[%clk 0:02:12]}  f6 {[%clk 0:01:48]} 18. Nc5 {[%clk 0:02:01]}  fxe5 {[%clk 0:01:29]} 19. dxe5 {[%clk 0:01:48]}  d4 {[%clk 0:01:27]} 20. Bf4 {[%clk 0:01:34]}  Bxc5 {[%clk 0:01:25]} 21. bxc5 {[%clk 0:01:33]}  Qxc5 {[%clk 0:01:26]} 22. Kg1 {[%clk 0:01:28]}  g5 {[%clk 0:01:22]} 23. Bd2 {[%clk 0:01:17]}  Nxe5 {[%clk 0:01:08]} 24. Be4 {[%clk 0:01:07]}  Bc6 {[%clk 0:00:52]} 25. Rc1 {[%clk 0:00:59]}  Qd6 {[%clk 0:00:51]} 26. Bb4 {[%clk 0:00:55]}  Qd7 {[%clk 0:00:51]} 27. Qe1 {[%clk 0:00:49]}  Bxe4 {[%clk 0:00:44]} 28. Qxe4 {[%clk 0:00:50]}  Nc6 {[%clk 0:00:44]} 29. Bd2 {[%clk 0:00:37]}  Qd5 {[%clk 0:00:43]} 30. Qd3 {[%clk 0:00:34]}  e5 {[%clk 0:00:32]} 31. Kh2 {[%clk 0:00:26]}  e4 {[%clk 0:00:29]} 32. Qc2 {[%clk 0:00:25]}  Ne5 {[%clk 0:00:27]} 33. Qc7+ {[%clk 0:00:22]}  Ka8 {[%clk 0:00:27]} 34. Rc5 {[%clk 0:00:20]}  Ng4+ {[%clk 0:00:22]} 35. Kg1 {[%clk 0:00:14]}  Qb3 {[%clk 0:00:17]} 36. Rc1 {[%clk 0:00:05]}  Qb6 {[%clk 0:00:14]} 37. Qc4 {[%clk 0:00:02]}  d3 {[%clk 0:00:14]} 38. Be3 {[%clk 0:00:03]}  Nxe3 {[%clk 0:00:14]} 39. fxe3 {[%clk 0:00:04]}  Qxe3+ {[%clk 0:00:14]} 40. Kh2 {[%clk 0:00:04]}  Qd4 {[%clk 0:00:12]} 41. Qc7 {[%clk 0:00:03]}  d2 {[%clk 0:00:10]} 42. Rc4 {[%clk 0:00:03]}  Qd6 {[%clk 0:00:07]} 43. Qxd6 {[%clk 0:00:02]}  Rxd6 {[%clk 0:00:08]} 44. Rd1 {[%clk 0:00:02]}  Re8 {[%clk 0:00:06]} 45. Rxd2 {[%clk 0:00:01]}  Rxd2 {[%clk 0:00:06]} 46. g4 {[%clk 0:00:01]}  e3 {[%clk 0:00:06]} 47. Re4 {[%clk 0:00:01]}  Rxe4 {[%clk 0:00:06]} 48. Kh3 {[%clk 0:00:01]}  e2 {[%clk 0:00:05]} 49. g3 {[%clk 0:00:02]}  e1=Q {[%clk 0:00:04]} 50. a4 {[%clk 0:00:03]}  Qe2 {[%clk 0:00:03]} 51. a5 {[%clk 0:00:03]}  Qf2 {[%clk 0:00:03]} 52. a6 {[%clk 0:00:04]}  Qh2# {[%clk 0:00:03]} 0-1


[Site "https://www.chess.com"]

[Event "Titled Tuesday Blitz April 11 Late 2023"]
[White "Seletsky, Grigory"]
[Black "Roebers, Eline"]
[WhiteFideId "14112191"]
[BlackFideId "1058401"]
[WhiteElo "2490"]
[BlackElo "2356"]
[Result "0-1"]
[Round "02"]
[TimeControl "180+2"]
[Date "2023.04.11"]
[WhiteClock "0:00:12"]
[BlackClock "0:01:00"]

1. e4 {[%clk 0:02:57]}  c5 {[%clk 0:02:59]} 2. Nf3 {[%clk 0:02:56]}  e6 {[%clk 0:02:59]} 3. d3 {[%clk 0:02:56]}  Nc6 {[%clk 0:02:58]} 4. Nbd2 {[%clk 0:02:56]}  Nf6 {[%clk 0:02:58]} 5. g3 {[%clk 0:02:56]}  Be7 {[%clk 0:02:55]} 6. Bg2 {[%clk 0:02:57]}  O-O {[%clk 0:02:55]} 7. O-O {[%clk 0:02:57]}  d5 {[%clk 0:02:51]} 8. Re1 {[%clk 0:02:58]}  b5 {[%clk 0:02:50]} 9. e5 {[%clk 0:02:51]}  Nd7 {[%clk 0:02:49]} 10. Nf1 {[%clk 0:02:51]}  a5 {[%clk 0:02:48]} 11. h4 {[%clk 0:02:49]}  b4 {[%clk 0:02:47]} 12. Bf4 {[%clk 0:02:48]}  a4 {[%clk 0:02:33]} 13. N1h2 {[%clk 0:02:45]}  Kh8 {[%clk 0:02:25]} 14. Ng5 {[%clk 0:02:35]}  h6 {[%clk 0:01:56]} 15. Qh5 {[%clk 0:02:30]}  Qe8 {[%clk 0:01:53]} 16. Ng4 {[%clk 0:01:45]}  f5 {[%clk 0:01:45]} 17. Qxe8 {[%clk 0:01:44]}  Rxe8 {[%clk 0:01:43]} 18. Nxe6 {[%clk 0:01:44]}  fxg4 {[%clk 0:01:42]} 19. Bxd5 {[%clk 0:01:39]}  Bb7 {[%clk 0:01:38]} 20. Nc7 {[%clk 0:01:38]}  Rf8 {[%clk 0:01:36]} 21. Nxa8 {[%clk 0:01:35]}  Bxa8 {[%clk 0:01:37]} 22. a3 {[%clk 0:01:26]}  Nd4 {[%clk 0:01:36]} 23. Bxa8 {[%clk 0:01:25]}  Rxa8 {[%clk 0:01:36]} 24. Rac1 {[%clk 0:01:13]}  Nf3+ {[%clk 0:01:35]} 25. Kg2 {[%clk 0:01:14]}  Nxe1+ {[%clk 0:01:36]} 26. Rxe1 {[%clk 0:01:14]}  bxa3 {[%clk 0:01:36]} 27. bxa3 {[%clk 0:01:13]}  Ra6 {[%clk 0:01:26]} 28. Re4 {[%clk 0:01:11]}  c4 {[%clk 0:01:21]} 29. Bc1 {[%clk 0:00:58]}  cxd3 {[%clk 0:01:19]} 30. cxd3 {[%clk 0:00:59]}  Nc5 {[%clk 0:01:19]} 31. Rxg4 {[%clk 0:00:39]}  Nxd3 {[%clk 0:01:18]} 32. Rc4 {[%clk 0:00:27]}  Nxc1 {[%clk 0:01:16]} 33. Rxc1 {[%clk 0:00:28]}  Bxa3 {[%clk 0:01:17]} 34. Rc2 {[%clk 0:00:25]}  Bf8 {[%clk 0:01:10]} 35. f4 {[%clk 0:00:20]}  a3 {[%clk 0:01:10]} 36. Ra2 {[%clk 0:00:18]}  Rb6 {[%clk 0:01:11]} 37. Kf3 {[%clk 0:00:19]}  Rb3+ {[%clk 0:01:08]} 38. Kg4 {[%clk 0:00:18]}  h5+ {[%clk 0:01:07]} 39. Kxh5 {[%clk 0:00:17]}  Rxg3 {[%clk 0:01:05]} 40. f5 {[%clk 0:00:13]}  Be7 {[%clk 0:01:01]} 41. f6 {[%clk 0:00:12]}  g6+ {[%clk 0:01:00]} 0-1


[Site "https://www.chess.com"]

[Event "Titled Tuesday Blitz April 11 Late 2023"]
[White "Przybylski, Wojciech"]
[Black "Buchenau, Frank"]
[WhiteFideId "1117599"]
[BlackFideId "4604350"]
[WhiteElo "2222"]
[BlackElo "2157"]
[Result "1-0"]
[Round "02"]
[TimeControl "180+2"]
[Date "2023.04.11"]
[WhiteClock "0:00:13"]
[BlackClock "0:00:06"]

1. e4 {[%clk 0:02:59]}  e6 {[%clk 0:02:50]} 2. d4 {[%clk 0:02:58]}  d5 {[%clk 0:02:50]} 3. Nc3 {[%clk 0:02:59]}  Nf6 {[%clk 0:02:50]} 4. Bg5 {[%clk 0:02:58]}  dxe4 {[%clk 0:02:49]} 5. Nxe4 {[%clk 0:02:58]}  Be7 {[%clk 0:02:49]} 6. Bxf6 {[%clk 0:02:58]}  gxf6 {[%clk 0:02:49]} 7. Nc3 {[%clk 0:02:59]}  b6 {[%clk 0:02:36]} 8. Qf3 {[%clk 0:02:58]}  c6 {[%clk 0:02:33]} 9. O-O-O {[%clk 0:02:57]}  Bb7 {[%clk 0:02:31]} 10. Nge2 {[%clk 0:02:53]}  Qc7 {[%clk 0:02:19]} 11. Qg4 {[%clk 0:02:42]}  Nd7 {[%clk 0:02:15]} 12. Qh5 {[%clk 0:02:36]}  Rf8 {[%clk 0:02:12]} 13. Ng3 {[%clk 0:02:26]}  O-O-O {[%clk 0:02:10]} 14. Bd3 {[%clk 0:02:24]}  f5 {[%clk 0:02:07]} 15. Kb1 {[%clk 0:02:22]}  Nf6 {[%clk 0:02:05]} 16. Qe2 {[%clk 0:02:17]}  Rxd4 {[%clk 0:01:57]} 17. Nxf5 {[%clk 0:01:57]}  Rdd8 {[%clk 0:01:14]} 18. Nxe7+ {[%clk 0:01:54]}  Qxe7 {[%clk 0:01:15]} 19. Rhe1 {[%clk 0:01:46]}  c5 {[%clk 0:01:10]} 20. f4 {[%clk 0:01:43]}  Rg8 {[%clk 0:01:08]} 21. g3 {[%clk 0:01:43]}  h5 {[%clk 0:00:59]} 22. Nb5 {[%clk 0:01:40]}  a6 {[%clk 0:00:52]} 23. Nc3 {[%clk 0:01:38]}  b5 {[%clk 0:00:51]} 24. Be4 {[%clk 0:00:56]}  Nxe4 {[%clk 0:00:40]} 25. Nxe4 {[%clk 0:00:55]}  h4 {[%clk 0:00:31]} 26. Qe3 {[%clk 0:00:42]}  Rd5 {[%clk 0:00:19]} 27. Nc3 {[%clk 0:00:29]}  Rxd1+ {[%clk 0:00:18]} 28. Rxd1 {[%clk 0:00:29]}  hxg3 {[%clk 0:00:18]} 29. hxg3 {[%clk 0:00:29]}  Rd8 {[%clk 0:00:15]} 30. Rxd8+ {[%clk 0:00:26]}  Kxd8 {[%clk 0:00:16]} 31. a3 {[%clk 0:00:24]}  f6 {[%clk 0:00:16]} 32. g4 {[%clk 0:00:24]}  Kc7 {[%clk 0:00:16]} 33. g5 {[%clk 0:00:24]}  fxg5 {[%clk 0:00:15]} 34. fxg5 {[%clk 0:00:23]}  b4 {[%clk 0:00:13]} 35. axb4 {[%clk 0:00:22]}  cxb4 {[%clk 0:00:14]} 36. Na4 {[%clk 0:00:17]}  Qd6 {[%clk 0:00:13]} 37. b3 {[%clk 0:00:15]}  e5 {[%clk 0:00:12]} 38. Nc5 {[%clk 0:00:15]}  Bc8 {[%clk 0:00:12]} 39. Nd3 {[%clk 0:00:14]}  Qd4 {[%clk 0:00:09]} 40. Qxe5+ {[%clk 0:00:13]}  Qxe5 {[%clk 0:00:09]} 41. Nxe5 {[%clk 0:00:14]}  Kd6 {[%clk 0:00:09]} 42. Nd3 {[%clk 0:00:14]}  a5 {[%clk 0:00:09]} 43. g6 {[%clk 0:00:13]}  Ke6 {[%clk 0:00:08]} 44. g7 {[%clk 0:00:10]}  Kf7 {[%clk 0:00:08]} 45. Ne5+ {[%clk 0:00:10]}  Kxg7 {[%clk 0:00:08]} 46. Nc6 {[%clk 0:00:11]}  Kf6 {[%clk 0:00:07]} 47. Nxa5 {[%clk 0:00:11]}  Ke5 {[%clk 0:00:07]} 48. Nc6+ {[%clk 0:00:11]}  Kd5 {[%clk 0:00:06]} 49. Nxb4+ {[%clk 0:00:12]}  Kc5 {[%clk 0:00:06]} 50. Nd3+ {[%clk 0:00:12]}  Kd4 {[%clk 0:00:06]} 51. Kb2 {[%clk 0:00:12]}  Bf5 {[%clk 0:00:06]} 52. Nc1 {[%clk 0:00:12]}  Kc5 {[%clk 0:00:06]} 53. Ne2 {[%clk 0:00:13]}  Be6 {[%clk 0:00:06]} 54. c3 {[%clk 0:00:12]}  Kb5 {[%clk 0:00:06]} 55. Nd4+ {[%clk 0:00:13]} 1-0


[Site "https://www.chess.com"]

[Event "Titled Tuesday Blitz April 11 Late 2023"]
[White "Filipets, Egor"]
[Black "Lorenzo De La Riva, Lazaro"]
[WhiteFideId "13503928"]
[BlackFideId "2268809"]
[WhiteElo "2233"]
[BlackElo "2294"]
[Result "0-1"]
[Round "02"]
[TimeControl "180+2"]
[Date "2023.04.11"]
[WhiteClock "0:00:40"]
[BlackClock "0:00:44"]

1. e4 {[%clk 0:02:50]}  c6 {[%clk 0:03:00]} 2. d4 {[%clk 0:02:49]}  d5 {[%clk 0:03:01]} 3. exd5 {[%clk 0:02:49]}  cxd5 {[%clk 0:03:02]} 4. Bd3 {[%clk 0:02:48]}  Nf6 {[%clk 0:03:02]} 5. h3 {[%clk 0:02:46]}  Nc6 {[%clk 0:03:00]} 6. c3 {[%clk 0:02:45]}  g6 {[%clk 0:02:56]} 7. Nf3 {[%clk 0:02:41]}  Bf5 {[%clk 0:02:56]} 8. O-O {[%clk 0:02:39]}  Bxd3 {[%clk 0:02:55]} 9. Qxd3 {[%clk 0:02:40]}  e6 {[%clk 0:02:55]} 10. Bf4 {[%clk 0:02:38]}  Bd6 {[%clk 0:02:53]} 11. Bxd6 {[%clk 0:02:35]}  Qxd6 {[%clk 0:02:54]} 12. Nbd2 {[%clk 0:02:35]}  O-O {[%clk 0:02:53]} 13. Rfe1 {[%clk 0:02:34]}  Nd7 {[%clk 0:02:52]} 14. Qe3 {[%clk 0:02:33]}  Rae8 {[%clk 0:02:49]} 15. Qh6 {[%clk 0:02:28]}  f6 {[%clk 0:02:49]} 16. Re2 {[%clk 0:02:27]}  Ne7 {[%clk 0:02:47]} 17. Nh4 {[%clk 0:02:16]}  g5 {[%clk 0:02:39]} 18. Nhf3 {[%clk 0:02:12]}  Nf5 {[%clk 0:02:30]} 19. Qh5 {[%clk 0:02:11]}  Ng7 {[%clk 0:02:30]} 20. Qh6 {[%clk 0:02:09]}  Nf5 {[%clk 0:02:27]} 21. Qh5 {[%clk 0:02:09]}  Rf7 {[%clk 0:02:04]} 22. Rae1 {[%clk 0:02:05]}  Nf8 {[%clk 0:02:04]} 23. Nf1 {[%clk 0:02:01]}  Ng6 {[%clk 0:02:02]} 24. g3 {[%clk 0:01:57]}  Ng7 {[%clk 0:02:01]} 25. Qh6 {[%clk 0:01:56]}  Nf5 {[%clk 0:01:59]} 26. Qh5 {[%clk 0:01:56]}  Rfe7 {[%clk 0:01:55]} 27. N3h2 {[%clk 0:01:51]}  Ng7 {[%clk 0:01:35]} 28. Qh6 {[%clk 0:01:51]}  Rf7 {[%clk 0:01:33]} 29. Ng4 {[%clk 0:01:47]}  Ref8 {[%clk 0:01:27]} 30. Nfe3 {[%clk 0:01:31]}  Qd7 {[%clk 0:01:25]} 31. Ng2 {[%clk 0:01:24]}  b5 {[%clk 0:01:18]} 32. Kh2 {[%clk 0:01:17]}  a5 {[%clk 0:01:17]} 33. f4 {[%clk 0:01:16]}  f5 {[%clk 0:01:03]} 34. Ne5 {[%clk 0:01:13]}  Nxe5 {[%clk 0:01:04]} 35. Rxe5 {[%clk 0:01:12]}  Rf6 {[%clk 0:01:04]} 36. Qxg5 {[%clk 0:01:12]}  Rg6 {[%clk 0:01:05]} 37. Qh4 {[%clk 0:01:10]}  Rff6 {[%clk 0:01:05]} 38. g4 {[%clk 0:01:04]}  fxg4 {[%clk 0:01:03]} 39. hxg4 {[%clk 0:01:05]}  Rh6 {[%clk 0:01:03]} 40. Rh5 {[%clk 0:01:04]}  Nxh5 {[%clk 0:01:03]} 41. gxh5 {[%clk 0:01:04]}  Rf5 {[%clk 0:00:52]} 42. Re5 {[%clk 0:00:56]}  Rhxh5 {[%clk 0:00:48]} 43. Qxh5 {[%clk 0:00:56]}  Rxh5+ {[%clk 0:00:48]} 44. Rxh5 {[%clk 0:00:57]}  b4 {[%clk 0:00:46]} 45. Kg3 {[%clk 0:00:56]}  bxc3 {[%clk 0:00:45]} 46. bxc3 {[%clk 0:00:57]}  Qc6 {[%clk 0:00:44]} 47. Kg4 {[%clk 0:00:50]}  Qxc3 {[%clk 0:00:44]} 48. Kg5 {[%clk 0:00:44]}  Qxd4 {[%clk 0:00:44]} 49. Nh4 {[%clk 0:00:40]}  Qg7+ {[%clk 0:00:44]} 0-1


[Site "https://www.chess.com"]